[Event "European Womens-ch 2025"]
[Site "Rhodes"]
[Date "2025.04.10"]
[Round "10.1"]
[White "Bulmaga, Irina"]
[Black "Injac, Teodora"]
[Result "0-1"]
[Annotator "RC"]
[ECO "C65"]
[WhiteElo "2362"]
[BlackElo "2454"]
[PlyCount "120"]
[EventDate "2025.03.29"]
[EventType "swiss"]
[EventCountry "GRE"]
[SourceTitle "playchess.com"]
[Source "ChessBase"]
[SourceQuality "1"]
[TimeControl "40/5400+30:1800+30"]

1. e4 {[%emt 0:00:06]} e5 {[%emt 0:00:14]} 2. Nf3 {[%emt 0:00:09]} Nc6 {[%emt 0:00:04]} 3. Bb5 {[%emt 0:00:12]} Nf6 {[%emt 0:00:10]} 4. d3 {[%emt 0:00:17]} Bc5 {[%emt 0:00:41]} 5. Bxc6 {[%emt 0:00:17]} dxc6 {[%emt 0:00:04]} 6. Nbd2 {[%emt 0:00:23]} Nd7 {[%emt 0:10:21]} 7. Nc4 {[%emt 0:00:50]} O-O {[%emt 0:01:12]} 8. Qe2 {[%emt 0:00:25]} Re8 {[%emt 0:05:32]} 9. h4 {[%emt 0:00:52]} b5 {[%emt 0:20:10]} 10. Ne3 {[%emt 0:00:37]} Nf8 {[%emt 0:00:58]} 11. Bd2 {[%emt 0:00:45]} a5 {[%emt 0:01:41]} 12. Rg1 {[%emt 0:10:42]} Bxe3 {[%emt 0:07:43]} 13. Qxe3 {[%emt 0:08:13]} Qd6 {[%emt 0:00:33]} 14. g4 {[%emt 0:07:03]} c5 {[%emt 0:01:11]} 15. h5 {[%emt 0:04:55]} Ne6 {[%emt 0:02:01]} 16. Nh4 {[%emt 0:10:53]} Nd4 {[%emt 0:02:24]} 17. O-O-O {[%emt 0:04:30]} b4 {[%emt 0:08:31]} 18. Nf5 {[%emt 0:05:24]} Qd7 {[%emt 0:02:21]} 19. Kb1 {[%emt 0:16:44]} Ra6 {[%emt 0:10:56]} 20. c4 {[%emt 0:03:56]} bxc3 {[%emt 0:01:54]} 21. Bxc3 {[%emt 0:00:09]} Rb6 {[%emt 0:01:27]} 22. Rc1 {[%emt 0:02:44]} Ba6 {[%emt 0:03:01]} 23. Rgd1 {[%emt 0:03:44]} Reb8 {[%emt 0:01:15]} 24. Rd2 {[%emt 0:01:39]} a4 {[%emt 0:01:30]} 25. Bxd4 {[%emt 0:01:28]} cxd4 {[%emt 0:00:38]} 26. Qe2 {[%emt 0:01:11]} Qd8 {[%emt 0:04:50]} 27. Rc5 {[%emt 0:03:01]} g6 {[%emt 0:00:28]} 28. Rd5 {[%emt 0:02:40]} Qf6 {[%emt 0:01:27]} 29. Ng3 {[%emt 0:06:22]} c6 {[%emt 0:00:21]} 30. Rc5 {[%emt 0:00:37]} Qd6 {[%emt 0:00:45]} 31. Rc1 {[%emt 0:02:27]} Bc8 {[%emt 0:04:46]} 32. hxg6 {[%emt 0:00:31]} fxg6 {[%emt 0:01:36]} 33. Ka1 {[%emt 0:01:18]} Be6 {[%emt 0:00:23]} 34. Qd1 {[%emt 0:00:18]} Qb4 {[%emt 0:00:59]} 35. a3 {[%emt 0:01:49]} Qa5 {[%emt 0:02:45]} 36. Nf1 {[%emt 0:00:19]} Bb3 {[%emt 0:00:51]} 37. Qe1 {[%emt 0:00:38]} Qb5 {[%emt 0:00:36]} 38. Qe2 {[%emt 0:00:22]} Bf7 {[%emt 0:01:24]} 39. Qd1 {[%emt 0:00:03]} Bb3 {[%emt 0:00:03]} 40. Qe2 {[%emt 0:00:00]} Bf7 {[%emt 0:00:00]} 41. Qd1 {[%emt 0:02:20]} Qa5 {[%emt 0:11:14]} 42. g5 {[%emt 0:04:20]} Qa7 {[%emt 0:02:59]} 43. Nh2 {[%emt 0:04:40]} Qe7 {[%emt 0:04:41]} 44. Qxa4 {[%emt 0:01:55]} Qxg5 {[%emt 0:00:58]} 45. Qd1 {[%emt 0:01:13]} Qe7 {[%emt 0:05:21]} 46. Qa4 {[%emt 0:01:22]} Qe6 {[%emt 0:02:57]} 47. b4 {[%emt 0:00:22]} Qe7 {[%emt 0:01:48]} 48. Rdc2 {[%emt 0:02:54]} Qb7 {[%emt 0:03:27]} 49. Rxc6 {[%emt 0:07:50]} Rxc6 {[%emt 0:00:10]} 50. Rxc6 {[%emt 0:01:38]} Ra8 {[%emt 0:00:31]} 51. Rb6 {[%emt 0:00:32]} Qc8 {[%emt 0:01:19]} 52. Rc6 {[%emt 0:01:20]} Qe8 {[%emt 0:00:58]} 53. Qc2 {[%emt 0:00:16]} Rxa3+ {[%emt 0:00:02]} 54. Kb1 {[%emt 0:00:08]} Kg7 {[%emt 0:01:10]} 55. Qc5 {[%emt 0:04:11]} Rb3+ {[%emt 0:00:24]} 56. Kc2 {[%emt 0:00:55]} Rc3+ {[%emt 0:00:04]} 57. Qxc3 {[%emt 0:00:07]} dxc3 {[%emt 0:00:02]} 58. b5 {[%emt 0:00:20]} Qe7 {[%emt 0:01:16]} 59. Nf3 {[%emt 0:00:28]} Qb4 {[%emt 0:00:42]} 60. Rxc3 {[%emt 0:00:20]} Qxb5 {[%emt 0:00:04]} 0-1

[Event "European Womens-ch 2025"]
[Site "Rhodes"]
[Date "2025.04.10"]
[Round "10.2"]
[White "Javakhishvili, Lela"]
[Black "Daulyte-Cornette, Deimante"]
[Result "1/2-1/2"]
[Annotator "RC"]
[ECO "A30"]
[WhiteElo "2429"]
[BlackElo "2389"]
[PlyCount "60"]
[EventDate "2025.03.29"]
[EventType "swiss"]
[EventCountry "GRE"]
[SourceTitle "playchess.com"]
[Source "ChessBase"]
[SourceQuality "1"]
[TimeControl "40/5400+30:1800+30"]

1. Nf3 {[%emt 0:00:05]} c5 {[%emt 0:00:13]} 2. c4 {[%emt 0:00:34]} Nf6 {[%emt 0:00:15]} 3. g3 {[%emt 0:00:37]} d5 {[%emt 0:00:31]} 4. cxd5 {[%emt 0:00:28]} Nxd5 {[%emt 0:00:09]} 5. Bg2 {[%emt 0:00:09]} Nc6 {[%emt 0:00:36]} 6. d4 {[%emt 0:00:11]} cxd4 {[%emt 0:00:39]} 7. Nxd4 {[%emt 0:00:08]} Ndb4 {[%emt 0:00:23]} 8. Nxc6 {[%emt 0:00:15]} Qxd1+ {[%emt 0:00:20]} 9. Kxd1 {[%emt 0:00:06]} Nxc6 {[%emt 0:00:05]} 10. Bxc6+ {[%emt 0:00:06]} bxc6 {[%emt 0:00:05]} 11. Be3 {[%emt 0:00:03]} e5 {[%emt 0:02:26]} 12. Nd2 {[%emt 0:06:51]} Be6 {[%emt 0:03:37]} 13. Rc1 {[%emt 0:31:51]} Bxa2 {[%emt 0:18:38]} 14. b3 {[%emt 0:00:39]} Bb4 {[%emt 0:02:50]} 15. Bc5 {[%emt 0:09:37]} Bxd2 {[%emt 0:01:11]} 16. Kxd2 {[%emt 0:00:05]} Bxb3 {[%emt 0:00:14]} 17. Kc3 {[%emt 0:06:07]} Ba4 {[%emt 0:02:22]} 18. f4 {[%emt 0:10:28]} e4 {[%emt 0:18:08]} 19. Rb1 {[%emt 0:00:22]} Bb5 {[%emt 0:01:09]} 20. Rb4 {[%emt 0:00:21]} O-O-O {[%emt 0:03:21]} 21. Bxa7 {[%emt 0:02:33]} Kb7 {[%emt 0:11:08]} 22. Be3 {[%emt 0:03:20]} Rhe8 {[%emt 0:01:10]} 23. Ra1 {[%emt 0:01:32]} Ra8 {[%emt 0:00:14]} 24. Rxa8 {[%emt 0:00:21]} Kxa8 {[%emt 0:00:36]} 25. Rb2 {[%emt 0:00:32]} Kb7 {[%emt 0:01:07]} 26. Bd4 {[%emt 0:02:15]} g6 {[%emt 0:02:55]} 27. Ra2 {[%emt 0:03:40]} Ba6 {[%emt 0:04:00]} 28. e3 {[%emt 0:02:42]} Rd8 {[%emt 0:05:11]} 29. Ra5 {[%emt 0:00:36]} Rd5 {[%emt 0:01:35]} 30. Rxd5 {[%emt 0:00:30]} cxd5 {[%emt 0:00:05]} 1/2-1/2

[Event "European Womens-ch 2025"]
[Site "Rhodes"]
[Date "2025.04.10"]
[Round "10.3"]
[White "Mkrtchian, Lilit"]
[Black "Ushenina, Anna"]
[Result "1/2-1/2"]
[Annotator "RC"]
[ECO "A29"]
[WhiteElo "2388"]
[BlackElo "2428"]
[PlyCount "20"]
[EventDate "2025.03.29"]
[EventType "swiss"]
[EventCountry "GRE"]
[SourceTitle "playchess.com"]
[Source "ChessBase"]
[SourceQuality "1"]
[TimeControl "40/5400+30:1800+30"]

1. c4 {[%emt 0:00:13]} e5 {[%emt 0:00:06]} 2. g3 {[%emt 0:01:45]} Nf6 {[%emt 0:00:05]} 3. Bg2 {[%emt 0:00:27]} d5 {[%emt 0:00:02]} 4. cxd5 {[%emt 0:00:19]} Nxd5 {[%emt 0:00:01]} 5. Nc3 {[%emt 0:03:06]} Nb6 {[%emt 0:00:08]} 6. Nf3 {[%emt 0:06:00]} Nc6 {[%emt 0:00:21]} 7. a3 {[%emt 0:00:25]} Be7 {[%emt 0:00:22]} 8. b4 {[%emt 0:01:12]} O-O {[%emt 0:00:10]} 9. O-O {[%emt 0:01:03]} Re8 {[%emt 0:00:16]} 10. d3 {[%emt 0:09:27]} Bf8 {[%emt 0:00:28]} 1/2-1/2

[Event "European Womens-ch 2025"]
[Site "Rhodes"]
[Date "2025.04.10"]
[Round "10.4"]
[White "Danielian, Elina"]
[Black "Narva, Mai"]
[Result "0-1"]
[Annotator "RC"]
[ECO "E67"]
[WhiteElo "2398"]
[BlackElo "2380"]
[PlyCount "88"]
[EventDate "2025.03.29"]
[EventType "swiss"]
[EventCountry "GRE"]
[SourceTitle "playchess.com"]
[Source "ChessBase"]
[SourceQuality "1"]
[TimeControl "40/5400+30:1800+30"]

1. d4 {[%emt 0:00:03]} Nf6 {[%emt 0:03:34]} 2. Nf3 {[%emt 0:00:08]} g6 {[%emt 0:00:22]} 3. c4 {[%emt 0:00:09]} Bg7 {[%emt 0:00:12]} 4. g3 {[%emt 0:00:22]} O-O {[%emt 0:00:17]} 5. Bg2 {[%emt 0:00:03]} d6 {[%emt 0:00:25]} 6. Nc3 {[%emt 0:00:40]} c6 {[%emt 0:00:15]} 7. O-O {[%emt 0:00:29]} Nbd7 {[%emt 0:00:15]} 8. h3 {[%emt 0:00:39]} e5 {[%emt 0:00:58]} 9. dxe5 {[%emt 0:01:49]} Nxe5 {[%emt 0:02:24]} 10. Qb3 {[%emt 0:12:39]} Nfd7 {[%emt 0:10:17]} 11. Ne4 {[%emt 0:13:13]} Qe7 {[%emt 0:06:02]} 12. Bg5 {[%emt 0:11:37]} f6 {[%emt 0:16:24]} 13. Bf4 {[%emt 0:06:40]} Nf7 {[%emt 0:04:00]} 14. Nc3 {[%emt 0:05:18]} g5 {[%emt 0:11:53]} 15. Be3 {[%emt 0:00:53]} f5 {[%emt 0:01:18]} 16. Rad1 {[%emt 0:00:32]} Kh8 {[%emt 0:39:54]} 17. Qc2 {[%emt 0:01:47]} Nde5 {[%emt 0:00:30]} 18. b3 {[%emt 0:42:29]} f4 {[%emt 0:00:00]} 19. Bc1 g4 {[%emt 0:00:00]} 20. Nxe5 Nxe5 {[%emt 0:01:30]} 21. Bxf4 {[%emt 0:00:00]} gxh3 {[%emt 0:00:00]} 22. Be4 {[%emt 0:00:00]} Be6 {[%emt 0:00:00]} 23. Kh1 {[%emt 0:00:00]} Rad8 {[%emt 0:00:00]} 24. Qc1 {[%emt 0:00:00]} Ng4 {[%emt 0:00:00]} 25. Bf3 {[%emt 0:00:00]} Ne5 {[%emt 0:01:05]} 26. Bg5 {[%emt 0:00:00]} Bf6 {[%emt 0:01:55]} 27. Ne4 {[%emt 0:00:00]} Bxg5 {[%emt 0:00:00]} 28. Qxg5 {[%emt 0:00:00]} Qxg5 {[%emt 0:00:00]} 29. Nxg5 {[%emt 0:05:30]} Bf5 {[%emt 0:01:30]} 30. Be4 {[%emt 0:00:00]} Bxe4+ {[%emt 0:00:00]} 31. Nxe4 {[%emt 0:00:00]} Ng4 {[%emt 0:00:02]} 32. Rxd6 {[%emt 0:00:26]} Rxd6 {[%emt 0:00:18]} 33. Nxd6 {[%emt 0:00:04]} Ne3 {[%emt 0:00:22]} 34. Re1 {[%emt 0:00:14]} Rxf2 {[%emt 0:00:09]} 35. Ne4 {[%emt 0:00:59]} Rg2 {[%emt 0:00:37]} 36. Ng5 {[%emt 0:00:30]} Ng4 {[%emt 0:02:02]} 37. Ne4 {[%emt 0:01:09]} Rh2+ {[%emt 0:00:00]} 38. Kg1 {[%emt 0:00:04]} Rg2+ {[%emt 0:00:00]} 39. Kh1 {[%emt 0:00:01]} Kg7 {[%emt 0:00:00]} 40. c5 {[%emt 0:00:00]} Kg6 {[%emt 0:00:00]} 41. Rf1 {[%emt 0:07:19]} Rxe2 {[%emt 0:02:08]} 42. Nd6 {[%emt 0:00:48]} Rh2+ {[%emt 0:01:35]} 43. Kg1 {[%emt 0:00:05]} Rg2+ {[%emt 0:00:08]} 44. Kh1 {[%emt 0:00:06]} Nf2+ {[%emt 0:02:01]} 0-1

[Event "European Womens-ch 2025"]
[Site "Rhodes"]
[Date "2025.04.10"]
[Round "10.5"]
[White "Maltsevskaya, Aleksandra"]
[Black "Arabidze, Meri"]
[Result "1-0"]
[Annotator "RC"]
[ECO "C54"]
[WhiteElo "2376"]
[BlackElo "2447"]
[PlyCount "71"]
[EventDate "2025.03.29"]
[EventType "swiss"]
[EventCountry "GRE"]
[SourceTitle "playchess.com"]
[Source "ChessBase"]
[SourceQuality "1"]
[TimeControl "40/5400+30:1800+30"]

1. e4 {[%emt 0:00:03]} e5 {[%emt 0:00:11]} 2. Bc4 {[%emt 0:00:08]} Nc6 {[%emt 0:00:43]} 3. d3 {[%emt 0:00:58]} Nf6 {[%emt 0:02:12]} 4. Nf3 {[%emt 0:00:13]} Bc5 {[%emt 0:00:45]} 5. Nbd2 {[%emt 0:00:15]} d6 {[%emt 0:02:00]} 6. c3 {[%emt 0:00:37]} a6 {[%emt 0:04:06]} 7. a4 {[%emt 0:02:55]} Ba7 {[%emt 0:01:15]} 8. a5 {[%emt 0:01:00]} O-O {[%emt 0:01:16]} 9. Nf1 {[%emt 0:00:10]} Ne7 {[%emt 0:02:11]} 10. Ng3 {[%emt 0:04:04]} Ng6 {[%emt 0:02:17]} 11. O-O {[%emt 0:01:07]} c6 {[%emt 0:00:54]} 12. Bb3 {[%emt 0:10:36]} Re8 {[%emt 0:06:16]} 13. Ng5 {[%emt 0:14:31]} d5 {[%emt 0:04:43]} 14. Nh5 {[%emt 0:21:28]} h6 {[%emt 0:06:07]} 15. Nh3 {[%emt 0:07:11]} Be6 {[%emt 0:13:49]} 16. Kh1 {[%emt 0:01:12]} Nxh5 {[%emt 0:23:05]} 17. Qxh5 {[%emt 0:00:05]} Qd7 {[%emt 0:02:22]} 18. exd5 {[%emt 0:17:24]} Bxd5 {[%emt 0:02:06]} 19. Bxd5 {[%emt 0:00:08]} Qxd5 {[%emt 0:01:47]} 20. Be3 {[%emt 0:14:34]} Bxe3 {[%emt 0:07:17]} 21. fxe3 {[%emt 0:00:05]} Qxd3 {[%emt 0:00:42]} 22. Rad1 {[%emt 0:00:08]} Qc4 {[%emt 0:00:37]} 23. Nf2 {[%emt 0:01:31]} Rad8 {[%emt 0:00:39]} 24. h3 {[%emt 0:00:53]} Rd5 {[%emt 0:02:46]} 25. e4 {[%emt 0:01:07]} Nf4 {[%emt 0:03:19]} 26. Qf3 {[%emt 0:00:05]} Rdd8 {[%emt 0:02:40]} 27. Ng4 {[%emt 0:00:11]} f6 {[%emt 0:02:58]} 28. g3 {[%emt 0:01:10]} Ne6 {[%emt 0:03:12]} 29. b3 {[%emt 0:00:12]} Qxb3 {[%emt 0:01:24]} 30. Rb1 {[%emt 0:00:18]} Qc2 {[%emt 0:01:15]} 31. Rxb7 {[%emt 0:00:22]} Rf8 {[%emt 0:00:12]} 32. Nxh6+ {[%emt 0:00:39]} Kh8 {[%emt 0:00:50]} 33. Nf5 {[%emt 0:00:33]} g6 {[%emt 0:00:31]} 34. Qg4 {[%emt 0:00:43]} Ng5 {[%emt 0:00:24]} 35. Qh4+ {[%emt 0:00:05]} Kg8 {[%emt 0:00:05]} 36. Rg7# {[%emt 0:00:05]} 1-0

[Event "European Womens-ch 2025"]
[Site "Rhodes"]
[Date "2025.04.10"]
[Round "10.6"]
[White "Tsolakidou, Stavroula"]
[Black "Savina, Anastasia"]
[Result "1-0"]
[Annotator "RC"]
[ECO "C45"]
[WhiteElo "2445"]
[BlackElo "2331"]
[PlyCount "169"]
[EventDate "2025.03.29"]
[EventType "swiss"]
[EventCountry "GRE"]
[SourceTitle "playchess.com"]
[Source "ChessBase"]
[SourceQuality "1"]
[TimeControl "40/5400+30:1800+30"]

1. e4 {[%emt 0:03:10]} e5 {[%emt 0:00:44]} 2. Nf3 {[%emt 0:00:09]} Nc6 {[%emt 0:00:04]} 3. d4 {[%emt 0:00:17]} exd4 {[%emt 0:00:07]} 4. Nxd4 {[%emt 0:00:06]} Bc5 {[%emt 0:00:28]} 5. Nb3 {[%emt 0:01:40]} Bb4+ {[%emt 0:00:52]} 6. c3 {[%emt 0:02:01]} Be7 {[%emt 0:00:05]} 7. f4 {[%emt 0:08:16]} d6 {[%emt 0:00:46]} 8. c4 {[%emt 0:10:34]} Nh6 {[%emt 0:07:51]} 9. Nc3 {[%emt 0:04:19]} O-O {[%emt 0:02:23]} 10. Be2 {[%emt 0:07:02]} Bh4+ {[%emt 0:09:12]} 11. g3 {[%emt 0:00:07]} Bf6 {[%emt 0:24:57]} 12. O-O {[%emt 0:15:00]} Bxc3 {[%emt 0:02:53]} 13. bxc3 {[%emt 0:00:04]} f5 {[%emt 0:00:48]} 14. exf5 {[%emt 0:01:22]} Nxf5 {[%emt 0:05:26]} 15. Qd3 {[%emt 0:03:40]} Qf6 {[%emt 0:15:30]} 16. Bd2 {[%emt 0:00:47]} Nh6 {[%emt 0:04:31]} 17. Bf3 {[%emt 0:09:29]} Bh3 {[%emt 0:03:55]} 18. Qd5+ {[%emt 0:01:19]} Kh8 {[%emt 0:01:19]} 19. Rfe1 {[%emt 0:02:54]} Ne5 {[%emt 0:10:27]} 20. Bh1 {[%emt 0:11:05]} c6 {[%emt 0:06:39]} 21. Qd4 {[%emt 0:01:17]} Nd7 {[%emt 0:00:30]} 22. Qxf6 {[%emt 0:00:42]} gxf6 {[%emt 0:00:16]} 23. Na5 {[%emt 0:01:06]} Nb6 {[%emt 0:01:42]} 24. Be3 {[%emt 0:01:48]} Nf5 {[%emt 0:00:32]} 25. Bf2 {[%emt 0:00:48]} Rfe8 {[%emt 0:00:31]} 26. Nxb7 {[%emt 0:01:10]} Nxc4 {[%emt 0:00:30]} 27. Bxc6 {[%emt 0:00:17]} Rec8 {[%emt 0:00:30]} 28. Bh1 {[%emt 0:02:48]} a5 {[%emt 0:00:14]} 29. a4 {[%emt 0:01:16]} Rab8 {[%emt 0:00:27]} 30. Rab1 {[%emt 0:00:39]} Nd2 {[%emt 0:00:50]} 31. Rb2 {[%emt 0:05:20]} Nc4 {[%emt 0:00:04]} 32. Rb5 {[%emt 0:00:22]} Re8 {[%emt 0:00:54]} 33. Rxe8+ {[%emt 0:02:06]} Rxe8 {[%emt 0:00:01]} 34. Nxa5 {[%emt 0:00:10]} Nd2 {[%emt 0:01:00]} 35. Rb2 {[%emt 0:03:04]} Ne4 {[%emt 0:00:30]} 36. Re2 {[%emt 0:00:53]} d5 {[%emt 0:00:12]} 37. Bxe4 {[%emt 0:01:10]} dxe4 {[%emt 0:00:09]} 38. Nc4 {[%emt 0:00:17]} Bg4 {[%emt 0:00:51]} 39. Re1 {[%emt 0:00:09]} Rc8 {[%emt 0:00:25]} 40. Nd2 {[%emt 0:00:00]} e3 {[%emt 0:00:00]} 41. Bxe3 {[%emt 0:01:26]} Rxc3 {[%emt 0:02:19]} 42. Bf2 {[%emt 0:02:14]} Ra3 {[%emt 0:04:12]} 43. Re4 {[%emt 0:21:29]} Ra2 {[%emt 0:19:36]} 44. Be1 {[%emt 0:00:46]} Bd1 {[%emt 0:01:09]} 45. Re6 {[%emt 0:01:14]} Kg7 {[%emt 0:02:19]} 46. a5 {[%emt 0:00:35]} Rxa5 {[%emt 0:02:53]} 47. Rxf6 {[%emt 0:03:12]} Kxf6 {[%emt 0:01:47]} 48. Ne4+ {[%emt 0:00:05]} Kg6 {[%emt 0:00:03]} 49. Bxa5 {[%emt 0:00:02]} h5 {[%emt 0:00:21]} 50. Kf2 {[%emt 0:00:41]} Bg4 {[%emt 0:00:47]} 51. Bc3 {[%emt 0:00:23]} Bd1 {[%emt 0:00:14]} 52. Nf6 {[%emt 0:00:37]} Ba4 {[%emt 0:00:42]} 53. h3 {[%emt 0:00:28]} Bc6 {[%emt 0:00:43]} 54. g4 {[%emt 0:01:49]} hxg4 {[%emt 0:00:02]} 55. hxg4 {[%emt 0:00:39]} Nd6 {[%emt 0:00:59]} 56. Ke3 {[%emt 0:00:24]} Nc4+ {[%emt 0:00:46]} 57. Ke2 {[%emt 0:00:33]} Nd6 {[%emt 0:00:28]} 58. Kd3 {[%emt 0:00:50]} Ne8 {[%emt 0:00:33]} 59. Ne4 {[%emt 0:00:31]} Bd7 {[%emt 0:00:11]} 60. Nf2 {[%emt 0:00:22]} Nd6 {[%emt 0:00:23]} 61. Bb4 {[%emt 0:01:04]} Ne8 {[%emt 0:00:38]} 62. Be7 {[%emt 0:00:46]} Kf7 {[%emt 0:00:31]} 63. Bh4 {[%emt 0:00:22]} Kg6 {[%emt 0:00:04]} 64. Ke4 {[%emt 0:01:10]} Nd6+ {[%emt 0:00:08]} 65. Kf3 {[%emt 0:00:26]} Bc6+ {[%emt 0:00:10]} 66. Ke3 {[%emt 0:00:07]} Bd7 {[%emt 0:00:15]} 67. Be7 {[%emt 0:00:36]} Nf7 {[%emt 0:00:53]} 68. Bf8 {[%emt 0:00:25]} Nd8 {[%emt 0:00:42]} 69. Ke4 {[%emt 0:01:02]} Bc6+ {[%emt 0:00:49]} 70. Ke5 {[%emt 0:00:16]} Kf7 {[%emt 0:01:14]} 71. Ba3 {[%emt 0:00:42]} Ne6 {[%emt 0:00:28]} 72. f5 {[%emt 0:00:11]} Ng7 {[%emt 0:00:34]} 73. Kf4 {[%emt 0:00:29]} Bd7 {[%emt 0:00:28]} 74. Nd3 {[%emt 0:00:21]} Kg8 {[%emt 0:00:31]} 75. Bb2 {[%emt 0:00:47]} Bb5 {[%emt 0:00:29]} 76. Nc5 {[%emt 0:00:17]} Ne8 {[%emt 0:00:10]} 77. Be5 {[%emt 0:00:09]} Bc4 {[%emt 0:00:28]} 78. g5 {[%emt 0:00:15]} Ba2 {[%emt 0:00:05]} 79. g6 {[%emt 0:00:34]} Bb1 {[%emt 0:00:33]} 80. Kg5 {[%emt 0:00:12]} Ba2 {[%emt 0:00:31]} 81. f6 {[%emt 0:00:25]} Bc4 {[%emt 0:00:30]} 82. Kf5 {[%emt 0:01:04]} Ng7+ {[%emt 0:01:16]} 83. fxg7 {[%emt 0:00:58]} Bd3+ {[%emt 0:00:26]} 84. Kg5 {[%emt 0:00:29]} Bf5 {[%emt 0:00:27]} 85. Kh6 {[%emt 0:00:15]} 1-0

[Event "European Womens-ch 2025"]
[Site "Rhodes"]
[Date "2025.04.10"]
[Round "10.7"]
[White "Toncheva, Nadya"]
[Black "Khotenashvili, Bella"]
[Result "1/2-1/2"]
[Annotator "RC"]
[ECO "D35"]
[WhiteElo "2329"]
[BlackElo "2418"]
[PlyCount "195"]
[EventDate "2025.03.29"]
[EventType "swiss"]
[EventCountry "GRE"]
[SourceTitle "playchess.com"]
[Source "ChessBase"]
[SourceQuality "1"]
[TimeControl "40/5400+30:1800+30"]

1. d4 {[%emt 0:00:04]} Nf6 {[%emt 0:03:45]} 2. c4 {[%emt 0:00:09]} e6 {[%emt 0:00:04]} 3. Nc3 {[%emt 0:00:07]} d5 {[%emt 0:00:17]} 4. cxd5 {[%emt 0:00:09]} exd5 {[%emt 0:00:02]} 5. Bg5 {[%emt 0:00:10]} Bb4 {[%emt 0:00:06]} 6. e3 {[%emt 0:00:23]} h6 {[%emt 0:00:22]} 7. Bh4 {[%emt 0:00:05]} g5 {[%emt 0:00:28]} 8. Bg3 {[%emt 0:00:06]} h5 {[%emt 0:00:20]} 9. f3 {[%emt 0:07:36]} h4 {[%emt 0:05:45]} 10. Bf2 {[%emt 0:01:29]} c5 {[%emt 0:06:32]} 11. Bd3 {[%emt 0:09:45]} c4 {[%emt 0:06:25]} 12. Bc2 {[%emt 0:01:13]} Nc6 {[%emt 0:02:40]} 13. Nge2 {[%emt 0:06:03]} Be6 {[%emt 0:05:57]} 14. h3 {[%emt 0:08:18]} Nh5 {[%emt 0:19:42]} 15. e4 {[%emt 0:03:09]} Nf4 {[%emt 0:07:52]} 16. Nxf4 {[%emt 0:00:44]} gxf4 {[%emt 0:01:12]} 17. exd5 {[%emt 0:14:37]} Bxd5 {[%emt 0:09:39]} 18. Qe2+ {[%emt 0:04:31]} Kf8 {[%emt 0:00:29]} 19. O-O-O {[%emt 0:05:20]} Bxc3 {[%emt 0:02:05]} 20. bxc3 {[%emt 0:00:04]} Qa5 {[%emt 0:01:44]} 21. Kb2 {[%emt 0:08:35]} Nb4 {[%emt 0:09:33]} 22. Ra1 {[%emt 0:06:28]} Re8 {[%emt 0:08:21]} 23. Qd2 {[%emt 0:01:15]} Nd3+ {[%emt 0:00:12]} 24. Bxd3 {[%emt 0:00:08]} cxd3 {[%emt 0:00:01]} 25. Rhe1 {[%emt 0:03:03]} Rxe1 {[%emt 0:01:14]} 26. Bxe1 {[%emt 0:00:46]} Rh6 {[%emt 0:03:04]} 27. a4 {[%emt 0:06:20]} Qb6+ {[%emt 0:02:22]} 28. Kc1 {[%emt 0:00:07]} Re6 {[%emt 0:00:12]} 29. Rb1 {[%emt 0:01:40]} Qd6 {[%emt 0:03:30]} 30. Kd1 {[%emt 0:01:24]} Bc4 {[%emt 0:00:57]} 31. Qb2 {[%emt 0:07:37]} Rxe1+ {[%emt 0:00:20]} 32. Kxe1 {[%emt 0:05:05]} Qe6+ 33. Kf1 {[%emt 0:00:00]} d2+ {[%emt 0:00:01]} 34. Kg1 {[%emt 0:00:00]} Qe1+ {[%emt 0:00:09]} 35. Kh2 {[%emt 0:00:00]} Qg3+ {[%emt 0:00:36]} 36. Kg1 {[%emt 0:00:00]} Qe1+ {[%emt 0:00:03]} 37. Kh2 {[%emt 0:00:00]} Bd3 {[%emt 0:00:15]} 38. Ra1 {[%emt 0:01:38]} Qg3+ {[%emt 0:00:04]} 39. Kg1 {[%emt 0:00:04]} Qe1+ {[%emt 0:00:04]} 40. Kh2 {[%emt 0:00:00]} Bf1 {[%emt 0:00:00]} 41. Kg1 {[%emt 0:09:10]} a5 {[%emt 0:10:00]} 42. Qb6 {[%emt 0:05:31]} Bd3+ {[%emt 0:02:12]} 43. Rxe1 {[%emt 0:00:06]} dxe1=Q+ {[%emt 0:00:08]} 44. Kh2 {[%emt 0:00:03]} Qxc3 {[%emt 0:04:41]} 45. Qxb7 {[%emt 0:02:00]} Qb4 {[%emt 0:03:06]} 46. Qc8+ {[%emt 0:01:33]} Kg7 {[%emt 0:00:38]} 47. d5 {[%emt 0:00:40]} Kf6 {[%emt 0:11:27]} 48. d6 {[%emt 0:05:34]} Qxd6 {[%emt 0:00:28]} 49. Qc3+ {[%emt 0:00:03]} Kg6 {[%emt 0:01:27]} 50. Qxa5 {[%emt 0:00:06]} Qd4 {[%emt 0:00:18]} 51. Qa8 {[%emt 0:04:05]} Kg7 {[%emt 0:00:13]} 52. Qc8 {[%emt 0:00:34]} Kh7 {[%emt 0:04:39]} 53. a5 {[%emt 0:00:48]} Qf6 {[%emt 0:00:22]} 54. Qd7 {[%emt 0:00:54]} Bc4 {[%emt 0:00:30]} 55. Qc7 {[%emt 0:00:20]} Bf1 {[%emt 0:00:28]} 56. Kg1 {[%emt 0:00:41]} Ba6 {[%emt 0:00:22]} 57. Kh2 {[%emt 0:00:20]} Kg7 {[%emt 0:00:13]} 58. Qc5 {[%emt 0:00:49]} Kg6 {[%emt 0:00:34]} 59. Qf8 {[%emt 0:01:07]} Bc4 {[%emt 0:00:59]} 60. Qg8+ {[%emt 0:00:37]} Kh6 {[%emt 0:00:04]} 61. Qf8+ {[%emt 0:00:09]} Kh7 {[%emt 0:01:06]} 62. Qc5 {[%emt 0:00:23]} Bd3 {[%emt 0:00:35]} 63. Qh5+ {[%emt 0:00:58]} Kg7 {[%emt 0:00:12]} 64. Qc5 {[%emt 0:00:55]} Be2 {[%emt 0:00:40]} 65. Qd5 {[%emt 0:00:40]} Kh6 {[%emt 0:00:13]} 66. Qc5 {[%emt 0:01:20]} Bd3 {[%emt 0:00:45]} 67. Qf8+ {[%emt 0:00:21]} Kg6 {[%emt 0:00:13]} 68. Qg8+ {[%emt 0:00:20]} Qg7 {[%emt 0:00:46]} 69. Qd8 {[%emt 0:00:18]} Bf1 {[%emt 0:00:22]} 70. Qxh4 {[%emt 0:03:05]} f5 {[%emt 0:00:39]} 71. Qxf4 {[%emt 0:00:25]} Qf6 {[%emt 0:00:24]} 72. Kg1 {[%emt 0:01:14]} Ba6 {[%emt 0:00:11]} 73. Kh2 {[%emt 0:00:25]} Qe6 {[%emt 0:00:24]} 74. Qd4 {[%emt 0:01:28]} Qe2 {[%emt 0:01:10]} 75. Qd6+ {[%emt 0:00:34]} Kf7 {[%emt 0:00:26]} 76. h4 {[%emt 0:01:13]} Qc4 {[%emt 0:00:07]} 77. Kg3 {[%emt 0:00:52]} Bc8 {[%emt 0:00:41]} 78. Qe5 {[%emt 0:00:25]} Kg6 {[%emt 0:00:22]} 79. Qe8+ {[%emt 0:00:33]} Kf6 {[%emt 0:00:15]} 80. Qd8+ {[%emt 0:00:16]} Kf7 {[%emt 0:00:30]} 81. h5 {[%emt 0:00:46]} Qc3 {[%emt 0:00:51]} 82. Qd5+ {[%emt 0:00:31]} Kg7 {[%emt 0:00:19]} 83. Kh2 {[%emt 0:00:45]} Qc7+ {[%emt 0:00:08]} 84. Kg1 {[%emt 0:00:35]} Kh6 {[%emt 0:00:34]} 85. Qg8 {[%emt 0:00:37]} Kxh5 {[%emt 0:00:22]} 86. Qh8+ {[%emt 0:00:14]} Kg6 {[%emt 0:00:12]} 87. Qg8+ {[%emt 0:00:09]} Kf6 {[%emt 0:00:10]} 88. Qf8+ {[%emt 0:00:12]} Ke5 {[%emt 0:00:24]} 89. Qa3 {[%emt 0:01:12]} Qc6 {[%emt 0:01:16]} 90. Qe3+ {[%emt 0:00:08]} Kd6 {[%emt 0:00:26]} 91. g4 {[%emt 0:00:37]} fxg4 {[%emt 0:00:42]} 92. fxg4 {[%emt 0:00:08]} Qd5 {[%emt 0:00:21]} 93. Qh6+ {[%emt 0:00:42]} Kd7 {[%emt 0:00:57]} 94. Qg7+ {[%emt 0:00:08]} Kc6 {[%emt 0:00:08]} 95. Qc3+ {[%emt 0:00:17]} Kd7 {[%emt 0:00:14]} 96. Qg7+ {[%emt 0:00:06]} Kc6 {[%emt 0:00:53]} 97. Qc3+ {[%emt 0:00:06]} Kd7 {[%emt 0:00:02]} 98. Qg7+ {[%emt 0:03:10]} 1/2-1/2